bitfinex/quotes_ETHUSD_20240921
["timestamp","ask_amount","ask_price","bid_price","bid_amount"]
[1726903286590,1.32196991,2551.9,2551.3,3.0]
[1726903286792,1.07199959,2551.8,2551.3,3.0]
[1726903286990,19.85,2551.8,2551.3,3.0]
[1726903287186,20.67060718,2551.8,2551.3,3.0]
[1726903288195,19.85,2551.8,2551.3,3.0]
[1726903288518,20.67060718,2551.8,2551.3,3.0]
[1726903288681,2.5493,2551.7,2551.3,3.0]
[1726903288888,22.3993,2551.7,2551.3,3.0]
[1726903290825,22.3993,2551.7,2551.5,3.0]
[1726903290826,19.85,2551.7,2551.5,3.0]
[1726903291986,2.5493,2551.6,2550.8,0.5417]
[1726903292221,2.5493,2551.6,2551.2,3.0]
[1726903293420,20.67060718,2551.7,2551.3,0.5417]
[1726903293626,19.85,2551.7,2551.3,0.5417]
[1726903297002,19.8547331,2551.7,2551.3,0.5417]
[1726903297904,19.8547331,2551.7,2551.4,3.0]
[1726903298730,0.0047331,2551.7,2551.4,3.11]
[1726903300708,0.82534028,2551.7,2551.4,3.11]
[1726903301845,1.06592125,2551.6,2551.4,0.11]
[1726903302143,0.82534028,2551.7,2551.4,0.11]
[1726903302355,1.06591201,2551.6,2551.4,0.11]
[1726903302553,0.82534028,2551.7,2551.4,0.11]
[1726903302711,1.06596115,2551.6,2551.4,0.11]
[1726903302912,0.0047331,2551.6,2551.4,0.11]
[1726903313953,0.0047331,2551.6,2551.4,0.7386]
[1726903315894,0.0047331,2551.6,2551.4,0.11]
[1726903324273,0.0047331,2551.6,2551.5,0.33489068]
[1726903324475,1.07104424,2551.6,2551.5,0.33489068]
[1726903325566,2.67082193,2551.6,2551.5,0.33489068]
[1726903326329,3.49142911,2551.6,2551.5,0.33489068]
[1726903327006,3.49142911,2551.6,2551.4,0.11]
[1726903327215,0.82534028,2551.6,2551.4,0.11]
[1726903327525,1.06033972,2551.5,2551.4,0.11]
[1726903328220,1.06507282,2551.5,2551.4,0.11]
[1726903328417,2.65620382,2551.5,2551.4,0.11]
[1726903328591,1.06507282,2551.5,2551.4,0.11]
[1726903328794,2.65620254,2551.5,2551.4,0.11]
[1726903329115,3.47680972,2551.5,2551.4,0.11]
[1726903330127,3.88691836,2551.5,2551.4,0.11]
[1726903330334,3.47942787,2551.5,2551.4,0.11]
[1726903330488,2.65620254,2551.5,2551.4,0.11]
[1726903330826,3.47942674,2551.5,2551.4,0.11]
[1726903332186,3.88691836,2551.5,2551.4,0.11]
[1726903332512,2.65620254,2551.5,2551.4,0.11]
[1726903332693,3.47943922,2551.5,2551.4,0.11]
[1726903334426,2.65620254,2551.5,2551.4,0.11]
[1726903335333,3.4794384,2551.5,2551.4,0.11]
[1726903335929,2.65620254,2551.5,2551.4,0.11]
[1726903338244,7.4903822,2551.5,2551.4,0.11]
[1726903338533,7.4903822,2551.5,2550.2,3.26528717]
[1726903338534,3.0504,2551.4,2550.1,4.14209892]
[1726903338709,3.32374366,2550.5,2550.1,2.5034819]
[1726903338913,3.46930839,2550.4,2550.1,2.5034819]
[1726903339239,3.32374366,2550.7,2550.3,1.7259819]
[1726903339793,0.82334366,2550.7,2550.5,1.7259819]
[1726903340001,0.82334366,2550.9,2550.6,3.7775]
[1726903340300,0.82334366,2551.1,2550.7,4.7259819]
[1726903340712,1.0531644,2551.0,2550.7,4.7259819]
[1726903340921,0.82334366,2551.1,2550.7,4.7259819]
[1726903341339,1.05298091,2551.0,2550.7,4.7259819]
[1726903341506,0.82334366,2551.1,2550.7,4.7259819]
[1726903341699,1.05296472,2551.0,2550.7,4.7259819]
[1726903342036,0.82334366,2551.1,2550.7,4.7259819]
[1726903342246,0.82334366,2551.1,2550.6,0.7775]
[1726903342400,1.05276358,2551.0,2550.7,4.7259819]
[1726903342600,0.82334366,2551.1,2550.7,4.7259819]
[1726903343226,0.82334366,2551.2,2550.7,4.7259819]
[1726903343430,1.05264735,2551.1,2550.7,4.7259819]
[1726903343639,0.82334366,2551.1,2550.7,4.7259819]
[1726903344244,0.82334366,2551.2,2550.7,4.7259819]
[1726903344407,1.05249051,2551.1,2550.7,4.7259819]
[1726903344638,0.82334366,2551.2,2550.7,4.7259819]
[1726903344841,3.45459153,2551.1,2550.7,4.7259819]
[1726903345054,0.82334366,2551.1,2550.7,4.7259819]
[1726903345267,0.82334366,2551.2,2550.7,4.7259819]
[1726903345564,1.05237395,2551.1,2550.7,4.7259819]
[1726903345767,0.82334366,2551.2,2550.7,4.7259819]
[1726903345984,1.05234666,2551.1,2550.7,4.7259819]
[1726903346276,0.82334366,2551.2,2550.7,4.7259819]
[1726903346473,1.05224786,2551.1,2550.7,4.7259819]
[1726903346676,0.82334366,2551.2,2550.7,4.7259819]
[1726903347044,1.05220507,2551.1,2550.7,4.7259819]
[1726903347244,0.82334366,2551.2,2550.7,4.7259819]
[1726903347645,1.052117,2551.1,2550.7,4.7259819]
[1726903347872,0.82334366,2551.2,2550.7,4.7259819]
[1726903348067,1.05210943,2551.1,2550.7,4.7259819]
[1726903348273,1.44436162,2551.2,2550.7,4.7259819]
[1726903348479,1.05203528,2551.1,2550.7,4.7259819]
[1726903348755,1.44436162,2551.2,2550.7,4.7259819]
[1726903348955,1.05199838,2551.1,2550.7,4.7259819]
[1726903349150,0.82334366,2551.2,2550.7,4.7259819]
[1726903349353,1.05192209,2551.1,2550.7,4.7259819]
[1726903349654,0.82334366,2551.2,2550.7,4.7259819]
[1726903349880,1.05188816,2551.1,2550.7,4.7259819]
[1726903350081,0.82334366,2551.2,2550.7,4.7259819]
[1726903350275,1.05182234,2551.1,2550.7,4.7259819]
[1726903350589,0.82334366,2551.2,2550.7,4.7259819]
[1726903350792,1.05178976,2551.1,2550.7,4.7259819]
[1726903350993,0.82334366,2551.2,2550.7,4.7259819]
[1726903354288,1.27969289,2551.2,2550.6,0.7775]
[1726903354500,1.27969289,2551.2,2550.7,3.0]
[1726903357575,0.82334366,2551.2,2550.7,3.0]
[1726903357777,1.05108628,2551.1,2550.6,0.7775]
[1726903358006,0.82334366,2551.2,2550.6,3.7775]
[1726903358413,2.5004,2551.3,2550.7,4.7259819]
[1726903358414,3.32374366,2551.3,2550.7,4.7259819]
[1726903358706,1.05115572,2551.2,2550.7,4.7259819]
[1726903358863,3.32374366,2551.3,2550.7,4.7259819]
[1726903359066,1.05119425,2551.2,2550.7,4.7259819]
[1726903359267,3.32374366,2551.3,2550.7,4.7259819]
[1726903359467,1.05122071,2551.2,2550.7,4.7259819]
[1726903359668,3.32374366,2551.3,2550.7,4.7259819]
[1726903359869,1.05118394,2551.2,2550.7,4.7259819]
[1726903360080,3.32374366,2551.3,2550.9,1.7259819]
[1726903360587,3.32374366,2551.3,2550.7,1.7259819]
[1726903360972,3.32374366,2551.3,2550.7,4.7259819]
[1726903367245,1.05147727,2551.2,2550.7,4.7259819]
[1726903367542,3.32374366,2551.3,2550.7,4.7259819]
[1726903368140,1.05153752,2551.2,2550.7,4.7259819]
[1726903368343,3.32374366,2551.3,2550.7,4.7259819]
[1726903368540,1.05152572,2551.2,2550.7,4.7259819]
[1726903368745,3.32374366,2551.3,2550.7,4.7259819]
[1726903369042,0.82334366,2551.3,2550.7,4.7259819]
[1726903369411,0.82334366,2551.3,2550.9,1.7259819]
[1726903369630,0.82807676,2551.4,2550.9,1.7259819]
[1726903369830,1.05158473,2551.3,2550.9,1.7259819]
[1726903370038,0.82334366,2551.3,2550.9,1.7259819]
[1726903370963,0.82807676,2551.4,2550.9,1.7259819]
[1726903371170,1.05168757,2551.3,2550.9,1.7259819]
[1726903371334,0.82334366,2551.3,2550.9,1.7259819]
[1726903372334,0.82334366,2551.3,2551.1,1.7259819]
[1726903372532,0.82334366,2551.3,2551.2,0.778]
[1726903372754,0.82334366,2551.3,2551.2,3.778]
[1726903373836,0.0047331,2551.4,2551.2,3.778]
[1726903376251,0.0047331,2551.4,2551.1,1.7259819]
[1726903376607,0.0047331,2551.4,2551.1,4.7259819]
[1726903385946,1.05360849,2551.3,2551.1,4.7259819]
[1726903386113,0.82703934,2551.4,2551.1,4.7259819]
[1726903386507,3.82635046,2551.4,2551.1,3.0]
[1726903386712,3.82635046,2551.4,2550.7,2.5039819]
[1726903386713,3.00404422,2551.4,2550.7,2.5039819]
[1726903387019,3.10203612,2551.4,2550.7,1.7259819]
[1726903387222,3.00404422,2551.4,2550.7,1.7259819]
[1726903387548,0.42375036,2551.3,2550.7,1.7259819]
[1726903387738,3.00404422,2551.4,2550.7,1.7259819]
[1726903389066,3.00404422,2551.4,2550.9,1.7259819]
[1726903389209,3.00404422,2551.4,2550.9,4.7259819]
[1726903390451,19.85,2551.3,2550.9,4.7259819]
[1726903390854,3.45647955,2551.2,2550.9,4.7259819]
[1726903391028,3.45647955,2551.1,2550.9,4.7259819]
[1726903391351,0.82235352,2551.1,2550.9,4.7259819]
[1726903391653,0.82235352,2551.2,2550.9,4.7259819]
[1726903391860,1.05363026,2551.1,2550.9,4.7259819]
[1726903392056,0.82235352,2551.2,2550.9,4.7259819]
[1726903392274,1.05362475,2551.1,2550.9,4.7259819]
[1726903392435,0.82235352,2551.2,2550.9,4.7259819]
[1726903392749,1.0536476,2551.1,2550.9,4.7259819]
[1726903392956,0.82235352,2551.2,2550.9,4.7259819]
[1726903393130,1.05364864,2551.1,2550.9,4.7259819]
[1726903393331,0.82235352,2551.2,2550.9,4.7259819]
[1726903393944,1.05361497,2551.1,2550.9,4.7259819]
[1726903394243,0.82235352,2551.2,2550.9,4.7259819]
[1726903394428,1.05362319,2551.1,2550.9,4.7259819]
[1726903394655,0.82235352,2551.2,2550.9,4.7259819]
[1726903394821,1.05364662,2551.1,2550.9,4.7259819]
[1726903395013,0.82235352,2551.2,2550.9,4.7259819]
[1726903395216,1.05363825,2551.1,2550.9,4.7259819]
[1726903395443,0.82235352,2551.2,2550.9,4.7259819]
[1726903395645,2.63418108,2551.1,2550.9,4.7259819]
[1726903395839,0.82235352,2551.1,2550.9,4.7259819]
[1726903396142,0.82235352,2551.2,2550.9,4.7259819]
[1726903396339,2.63415963,2551.1,2550.9,4.7259819]
[1726903396541,0.82235352,2551.1,2550.9,4.7259819]
[1726903396758,20.67235352,2551.2,2550.9,4.7259819]
[1726903396954,2.63423,2551.1,2550.9,4.7259819]
[1726903397125,20.67235352,2551.2,2550.9,4.7259819]
[1726903397454,1.05368731,2551.1,2550.9,4.7259819]
[1726903397755,20.67235352,2551.2,2550.9,4.7259819]
[1726903398658,1.05368481,2551.1,2550.9,4.7259819]
[1726903398819,20.67235352,2551.2,2550.9,4.7259819]
[1726903399019,1.05371678,2551.1,2550.9,4.7259819]
[1726903399277,20.67235352,2551.2,2550.9,4.7259819]
[1726903399483,1.05373655,2551.1,2550.9,4.7259819]
[1726903399620,20.67235352,2551.2,2550.9,4.7259819]
[1726903399966,1.05372573,2551.1,2550.9,4.7259819]
[1726903400161,20.67235352,2551.2,2550.9,4.7259819]
[1726903400369,1.05373081,2551.1,2550.9,4.7259819]
[1726903400653,0.82235352,2551.1,2550.9,4.7259819]
[1726903400863,20.67235352,2551.2,2550.9,4.7259819]
[1726903401043,1.05376242,2551.1,2550.9,4.7259819]
[1726903401249,20.67235352,2551.2,2550.9,4.7259819]
[1726903401423,1.05378528,2551.1,2550.9,4.7259819]
[1726903401624,20.67235352,2551.2,2550.9,4.7259819]
[1726903402058,20.67235352,2551.2,2550.3,2.05469449]
[1726903402059,3.4569176,2551.1,2550.5,0.7826]
[1726903402257,0.82235352,2551.2,2550.8,1.7259819]
[1726903402465,1.05382571,2551.1,2550.8,1.7259819]
[1726903402761,0.82235352,2551.1,2550.8,1.7259819]
[1726903403567,0.82235352,2551.2,2550.8,1.7259819]
[1726903403938,1.05389108,2551.1,2550.8,1.7259819]
[1726903404271,0.82235352,2551.2,2550.8,1.7259819]
[1726903404421,1.053934,2551.1,2550.8,1.7259819]
[1726903404624,0.82235352,2551.2,2550.8,1.7259819]
[1726903404862,3.45721957,2551.1,2550.8,1.7259819]
[1726903405023,0.82235352,2551.1,2550.8,1.7259819]
[1726903405341,0.82235352,2551.2,2550.8,1.7259819]
[1726903405529,1.04725344,2551.1,2550.8,1.7259819]
[1726903405730,0.82235352,2551.2,2550.8,1.7259819]
[1726903406859,1.0472439,2551.1,2550.8,1.7259819]
[1726903407064,0.82235352,2551.2,2550.8,1.7259819]
[1726903407361,1.04727644,2551.1,2550.9,3.7826]
[1726903407567,0.82235352,2551.2,2550.9,3.7826]
[1726903408275,0.82235352,2551.2,2551.0,1.7259819]
[1726903408425,0.82235352,2551.3,2551.0,4.7259819]
[1726903408627,1.0472542,2551.2,2551.0,4.7259819]
[1726903408848,0.82235352,2551.3,2551.0,4.7259819]
[1726903409039,3.44049595,2551.2,2551.0,4.7259819]
[1726903409265,0.82235352,2551.2,2551.0,4.7259819]
[1726903409630,1.047313,2551.1,2551.0,4.7259819]
[1726903409872,1.04730944,2551.1,2551.0,4.7259819]
[1726903410178,1.23345936,2551.3,2551.0,4.7259819]
[1726903410179,0.82235352,2551.3,2551.0,4.7259819]
[1726903410322,1.04729433,2551.2,2551.0,4.7259819]
[1726903410526,0.82235352,2551.3,2551.0,4.7259819]
[1726903410759,1.04728568,2551.2,2551.0,4.7259819]
[1726903410963,0.82235352,2551.3,2551.0,4.7259819]
[1726903411280,3.44066572,2551.2,2551.0,4.7259819]
[1726903411563,0.82235352,2551.2,2551.0,4.7259819]
[1726903411740,1.04735809,2551.1,2551.0,4.7259819]
[1726903411941,0.82235352,2551.3,2551.0,4.7259819]
[1726903412164,1.04732538,2551.2,2551.0,4.7259819]
[1726903412361,0.82235352,2551.3,2551.0,4.7259819]
[1726903412667,1.04734696,2551.2,2551.0,4.7259819]
[1726903412867,0.82235352,2551.3,2551.0,4.7259819]
[1726903413049,3.44072486,2551.2,2551.0,4.7259819]
[1726903413366,1.04740922,2551.1,2551.0,4.7259819]
[1726903414124,0.82235352,2551.2,2551.0,4.7259819]
[1726903415170,1.04743722,2551.1,2551.0,4.7259819]
[1726903416155,0.82235352,2551.2,2551.0,4.7259819]
[1726903417145,1.04748175,2551.1,2551.0,4.7259819]
[1726903418331,1.04752923,2551.1,2551.0,4.7259819]
[1726903420786,1.04752923,2551.1,2550.8,1.7259819]
[1726903420990,0.82235352,2551.1,2550.8,4.7259819]
[1726903421346,1.23345936,2551.2,2550.8,4.7259819]
[1726903421347,0.82235352,2551.2,2550.8,4.7259819]
[1726903421577,1.04757064,2551.1,2550.8,4.7259819]
[1726903421770,0.82235352,2551.2,2550.8,4.7259819]
[1726903422360,1.04755226,2551.1,2550.8,4.7259819]
[1726903422564,0.82235352,2551.2,2550.8,4.7259819]
[1726903422763,1.04759707,2551.1,2550.8,4.7259819]
[1726903423042,0.82235352,2551.2,2550.8,4.7259819]
[1726903424396,1.04757446,2551.1,2550.8,4.7259819]
[1726903424567,0.82235352,2551.2,2550.8,4.7259819]
[1726903424770,1.04762095,2551.1,2550.8,4.7259819]
[1726903424983,0.82235352,2551.2,2550.8,4.7259819]
[1726903425158,1.04761772,2551.1,2550.8,4.7259819]
[1726903425490,0.82235352,2551.2,2550.8,4.7259819]
[1726903425652,0.82235352,2551.2,2550.8,3.0]
[1726903425854,0.82235352,2551.0,2550.6,3.0]
[1726903426050,0.82235352,2551.0,2550.5,2.5074819]
[1726903426051,1.04770768,2550.9,2550.5,3.7815]
[1726903426297,0.82235352,2551.0,2550.6,1.7259819]
[1726903426499,3.44168074,2550.9,2550.6,4.7259819]
[1726903426651,0.82235352,2550.9,2550.6,1.7259819]
[1726903426863,3.92745936,2551.1,2550.6,1.7259819]
[1726903426864,0.82235352,2551.0,2550.6,1.7259819]
[1726903427070,1.04764473,2550.9,2550.6,1.7259819]
[1726903427275,0.82235352,2550.9,2550.6,1.7259819]
[1726903427582,0.82235352,2551.0,2550.6,1.7259819]
[1726903427788,1.04758618,2550.9,2550.6,1.7259819]
[1726903428097,0.82235352,2551.0,2550.6,1.7259819]
[1726903428298,1.04758718,2550.9,2550.6,1.7259819]
[1726903428602,0.82235352,2551.0,2550.6,1.7259819]
[1726903428758,1.04756064,2550.9,2550.6,1.7259819]
[1726903428958,0.82235352,2551.0,2550.6,1.7259819]
[1726903429183,1.04755977,2550.9,2550.6,1.7259819]
[1726903429392,0.82235352,2551.0,2550.6,1.7259819]
[1726903429594,1.04751958,2550.9,2550.6,1.7259819]
[1726903429802,0.82235352,2551.0,2550.8,1.7259819]
[1726903429986,1.04757071,2550.9,2550.8,1.7259819]
[1726903430661,0.82235352,2551.0,2550.8,1.7259819]
[1726903430899,3.51635352,2551.1,2550.8,1.7259819]
[1726903431053,3.44120119,2551.0,2550.8,1.7259819]
[1726903431253,3.51635352,2551.1,2550.8,1.7259819]
[1726903431453,3.44117929,2551.0,2550.8,1.7259819]
[1726903431691,1.04753031,2550.9,2550.8,1.7259819]
[1726903433089,3.44128924,2550.9,2550.8,1.7259819]
[1726903435598,1.04753031,2550.9,2550.8,1.7259819]
[1726903435897,3.43126988,2550.9,2550.8,1.7259819]
[1726903436602,1.04753031,2550.9,2550.8,1.7259819]
[1726903436965,2.694,2550.8,2550.3,0.7815]
[1726903437168,3.51635352,2550.8,2550.4,4.7259819]
[1726903437390,1.04094925,2550.7,2550.4,4.7259819]
[1726903437699,2.694,2550.8,2550.4,4.7259819]
[1726903439090,2.694,2550.8,2550.6,1.7259819]
[1726903442244,3.51635352,2550.8,2550.6,1.7259819]
[1726903442733,2.694,2550.8,2550.6,1.7259819]
[1726903442879,1.04039388,2550.7,2550.4,4.7259819]
[1726903443075,5.97633481,2550.8,2550.4,4.7259819]
[1726903443280,1.04041169,2550.7,2550.4,4.7259819]
[1726903443579,3.51635352,2550.8,2550.4,4.7259819]
[1726903443880,1.0402549,2550.7,2550.4,4.7259819]
[1726903444074,3.51635352,2550.8,2550.4,4.7259819]
[1726903444279,1.04025324,2550.7,2550.4,4.7259819]
[1726903444523,3.51635352,2550.8,2550.4,4.7259819]
[1726903445285,2.694,2550.8,2550.4,4.7259819]
[1726903445721,3.51635352,2550.8,2550.4,3.0]
[1726903446033,1.0400319,2550.7,2550.5,1.7259819]
[1726903446236,3.51635352,2550.8,2550.5,1.7259819]
[1726903447221,3.51635352,2550.8,2550.6,0.33205286]
[1726903447395,3.51635352,2550.8,2550.7,0.33205286]
[1726903447613,5.2935731,2550.8,2550.7,0.33205286]
[1726903447919,3.73382924,2550.8,2550.7,0.33205286]
[1726903448114,5.29355822,2550.8,2550.7,0.33205286]
[1726903448321,3.73382924,2550.8,2550.7,0.33205286]
[1726903449198,6.11581565,2550.8,2550.7,0.33205286]
[1726903449436,3.73382924,2550.8,2550.7,0.33205286]
[1726903450208,3.73382924,2550.8,2550.5,1.7259819]
[1726903450536,2.694,2550.8,2550.6,0.33197824]
[1726903450733,2.694,2550.8,2550.7,0.33197824]
[1726903450909,3.73363348,2550.8,2550.7,0.33197824]
[1726903453401,3.73354017,2550.8,2550.7,0.33197824]
[1726903453833,2.694,2550.8,2550.7,0.33197824]
[1726903454613,3.73352566,2550.8,2550.7,0.33197824]
[1726903455003,2.694,2550.8,2550.7,0.33197824]
[1726903455337,3.73351004,2550.8,2550.7,0.33197824]
[1726903455540,2.694,2550.8,2550.7,0.33197824]
[1726903456640,3.73356172,2550.8,2550.7,0.33197824]
[1726903457553,2.694,2550.8,2550.7,0.33197824]
[1726903457837,2.694,2550.8,2550.5,1.7259819]
[1726903458348,2.694,2550.8,2550.7,0.33193085]
[1726903458549,3.73360143,2550.8,2550.7,0.33193085]
[1726903459609,3.73369764,2550.8,2550.7,0.33193085]
[1726903460141,2.694,2550.8,2550.7,0.33193085]
[1726903460648,3.73375413,2550.8,2550.7,0.33193085]
[1726903461609,2.694,2550.8,2550.7,0.33193085]
[1726903461844,5.29351462,2550.8,2550.7,0.33193085]
[1726903462046,8.57584943,2550.8,2550.7,0.33193085]
[1726903465457,8.57584943,2550.8,2549.9,0.24611289]
[1726903465458,10.15945976,2550.8,2549.9,0.7815]
[1726903465639,2.4998,2550.3,2549.9,0.7815]
[1726903465844,2.58356826,2550.2,2550.0,1.7259819]
[1726903466045,3.77751128,2550.3,2550.0,1.7259819]
[1726903466046,3.32198502,2550.3,2550.0,1.7259819]
[1726903466429,1.03212464,2550.2,2549.9,0.7815]
[1726903466755,3.32198502,2550.3,2549.9,0.7815]
[1726903466914,3.32198502,2550.3,2549.9,3.7815]
[1726903467641,2.4998,2550.3,2549.9,3.7815]
[1726903467816,2.4998,2550.3,2550.0,1.7259819]
[1726903468012,2.4998,2550.3,2550.0,3.0]
[1726903468246,2.4998,2550.3,2550.0,4.7259819]
[1726903468626,2.4998,2550.3,2549.5,0.24207431]
[1726903468959,2.4998,2550.3,2549.8,1.7259819]
[1726903468960,3.32198502,2550.3,2549.8,1.7259819]
[1726903470262,2.4998,2550.3,2549.8,1.7259819]
[1726903470958,2.4998,2550.3,2550.0,1.7259819]
[1726903472748,3.06315932,2550.3,2549.6,0.7815]
[1726903472953,1.03137761,2550.2,2549.7,4.7259819]
[1726903473167,3.78731423,2550.3,2549.7,4.7259819]
[1726903473464,3.32198502,2550.3,2549.7,4.7259819]
[1726903473860,3.32408502,2550.3,2549.7,4.7259819]
[1726903475367,2.5019,2550.3,2549.7,4.7259819]
[1726903476145,3.32408502,2550.3,2549.9,1.7259819]
[1726903476348,2.5019,2550.3,2549.9,1.7259819]
[1726903478834,22.3519,2550.3,2549.9,1.7259819]
[1726903479037,24.79263626,2550.3,2549.9,1.7259819]
[1726903480250,22.3519,2550.3,2549.9,1.7259819]
[1726903484849,19.85,2550.2,2549.9,1.7259819]
[1726903485045,19.8521,2550.2,2549.9,1.7259819]
[1726903490863,0.0021,2550.2,2549.9,1.7259819]
[1726903494661,0.0021,2550.2,2550.1,1.7259819]
[1726903502812,0.0021,2550.2,2550.1,4.7259819]
[1726903507083,0.0021,2550.2,2550.1,2.5055819]
[1726903507281,0.0021,2550.2,2550.1,5.5055819]
[1726903523939,7.37,2550.8,2550.3,0.7903]
[1726903524231,19.85,2550.9,2550.7,1.7259819]
[1726903524736,2.6842,2551.0,2550.7,1.7259819]
[1726903525824,2.6842,2551.0,2550.8,0.32852116]
[1726903526145,2.6842,2551.0,2550.7,1.7259819]
[1726903526623,2.6842,2551.0,2550.7,2.05450306]
[1726903526824,2.6842,2551.0,2550.7,1.7259819]
[1726903527026,2.6842,2551.0,2550.8,0.32852116]
[1726903528021,2.6842,2551.0,2550.7,1.7259819]
[1726903528426,2.6842,2551.0,2550.7,2.05450306]
[1726903528640,2.6842,2551.0,2550.7,1.7259819]
[1726903529013,2.6842,2551.0,2550.7,2.05450306]
[1726903529241,2.6842,2551.0,2550.7,1.7259819]
[1726903529448,2.6842,2551.0,2550.8,0.32852116]
[1726903530251,2.6842,2551.0,2550.7,1.7259819]
[1726903530429,2.6842,2551.0,2550.9,1.7259819]
[1726903531457,0.1027364,2551.4,2550.9,1.7259819]
[1726903531458,2.6842,2551.3,2550.9,1.7259819]
[1726903531619,2.6842,2551.3,2551.2,1.7259819]
[1726903532633,0.0047331,2551.4,2551.2,1.7259819]
[1726903547482,0.0047331,2551.4,2550.8,1.02961193]
[1726903547770,2.491,2551.3,2551.1,1.7259819]
[1726903560187,0.0047331,2551.4,2551.1,1.7259819]
[1726903560518,0.0047331,2551.4,2551.3,1.7259819]
[1726903568426,2.5898,2551.3,2550.6,5.43595015]
[1726903568637,2.5898,2551.3,2551.0,1.7259819]
[1726903569913,2.5898,2551.3,2550.7,3.0]
[1726903570132,2.6878024,2551.3,2550.6,0.7924]
[1726903570367,2.5898,2551.3,2551.1,1.7259819]
[1726903573668,0.0047331,2551.4,2551.1,1.7259819]
[1726903573877,0.0047331,2551.4,2551.3,1.7259819]
[1726903575284,1.01341487,2551.4,2551.3,1.7259819]
[1726903576342,0.0047331,2551.4,2551.3,1.7259819]
[1726903577380,2.52724078,2551.4,2551.3,1.7259819]
[1726903577760,1.01372242,2551.4,2551.3,1.7259819]
[1726903578268,2.52725159,2551.4,2551.3,1.7259819]
[1726903578597,1.01373123,2551.4,2551.3,1.7259819]
[1726903581158,0.0047331,2551.4,2551.3,1.7259819]
[1726903581576,1.01369877,2551.4,2551.3,1.7259819]
[1726903583563,1.01369006,2551.4,2551.3,1.7259819]
[1726903583758,0.0047331,2551.4,2551.3,1.7259819]
[1726903584159,1.01369408,2551.4,2551.3,1.7259819]
[1726903584955,0.0047331,2551.4,2551.3,1.7259819]
[1726903585157,0.0047331,2551.4,2551.3,6.1172819]
[1726903586157,0.0047331,2551.4,2551.3,4.7259819]
[1726903586399,0.0047331,2551.4,2551.3,1.7259819]
[1726903594678,0.0047331,2551.4,2551.3,6.1172819]
[1726903595102,0.0047331,2551.4,2551.3,7.76083205]
[1726903595311,0.0047331,2551.4,2551.3,6.1172819]
[1726903595475,0.0047331,2551.4,2551.3,7.76083205]
[1726903596494,0.0047331,2551.4,2551.3,6.1172819]
[1726903602032,0.0047331,2551.4,2551.3,6.35742376]
[1726903610637,7.37,2552.0,2551.9,1.7259819]
[1726903610839,2.8208,2552.1,2551.9,1.7259819]
[1726903611029,0.0208,2552.1,2551.9,1.7259819]
[1726903612041,0.0377249,2552.2,2551.9,1.7259819]
[1726903612236,0.0377249,2552.2,2552.1,1.7259819]
[1726903684506,0.0377249,2552.2,2552.1,7.5275819]
[1726903684818,0.0377249,2552.2,2552.1,9.17113205]
[1726903685020,0.0377249,2552.2,2552.1,7.5275819]
[1726903685397,0.0377249,2552.2,2552.1,9.17117853]
[1726903685731,0.0377249,2552.2,2552.1,9.17055059]
[1726903686615,0.0377249,2552.2,2552.1,9.40858476]
[1726903689345,0.0377249,2552.2,2552.1,7.76561607]
[1726903692448,0.0377249,2552.2,2552.1,9.40858476]
[1726903695639,7.37,2552.6,2552.5,4.5275819]
[1726903695809,0.0377249,2553.0,2552.7,2.8016]
[1726903696006,0.0377249,2553.0,2552.9,1.7259819]
[1726903704587,0.0377249,2553.0,2552.9,4.5344819]
[1726903704813,0.0377249,2553.0,2552.9,7.5344819]
[1726903705102,2.8323,2553.6,2553.1,2.8085]
[1726903705244,0.0377249,2553.7,2553.4,1.7259819]
[1726903705449,0.0377249,2553.7,2553.6,1.7259819]
[1726903708194,2.8000249,2553.7,2553.6,1.7259819]
[1726903716479,0.0377249,2553.7,2553.6,1.7259819]
[1726903728788,2.708,2553.6,2553.3,3.0]
[1726903729027,2.708,2553.6,2553.4,1.7259819]
[1726903731203,0.0377249,2553.7,2553.4,4.7259819]
[1726903731534,0.0377249,2553.7,2553.6,1.7259819]
[1726903750402,1.03901234,2553.7,2553.6,1.7259819]
[1726903750573,0.0377249,2553.7,2553.6,1.7259819]
[1726903751254,0.0377249,2553.7,2553.4,3.0]
[1726903751655,0.85990992,2553.7,2553.5,1.7259819]
[1726903752646,0.0377249,2553.7,2553.5,1.7259819]
[1726903753873,0.85990992,2553.7,2553.5,1.7259819]
[1726903754654,0.0377249,2553.7,2553.5,1.7259819]
[1726903757989,0.85990992,2553.7,2553.5,1.7259819]
[1726903758739,0.0377249,2553.7,2553.5,1.7259819]
[1726903758946,0.0377249,2553.7,2553.2,4.64009933]
[1726903758947,6.21840088,2553.6,2553.2,1.7259819]
[1726903759285,3.32556481,2553.5,2553.2,1.7259819]
[1726903759577,3.71518502,2553.6,2553.2,1.7259819]
[1726903759783,1.00116226,2553.5,2553.2,1.7259819]
[1726903759978,0.82218502,2553.5,2553.0,0.2437397]
[1726903760180,1.00118606,2553.4,2553.3,1.7259819]
[1726903760357,0.82218502,2553.5,2553.3,1.7259819]
[1726903760947,3.71518502,2553.6,2553.3,1.7259819]
[1726903761148,1.00099699,2553.5,2553.3,1.7259819]
[1726903761373,4.4360438,2553.6,2553.3,1.7259819]
[1726903761572,1.0008942,2553.5,2553.3,1.7259819]
[1726903761778,4.4360438,2553.6,2553.3,1.7259819]
[1726903761945,1.00088576,2553.5,2553.3,1.7259819]
[1726903762288,4.4360438,2553.6,2553.3,1.7259819]
[1726903762591,1.0007851,2553.5,2553.3,1.7259819]
[1726903762887,3.71518502,2553.6,2553.3,1.7259819]
[1726903763747,0.09791157,2553.5,2553.3,1.7259819]
[1726903764192,3.71518502,2553.6,2553.3,1.7259819]
[1726903764396,1.00066972,2553.5,2553.3,1.7259819]
[1726903764563,3.71518502,2553.6,2553.3,1.7259819]
[1726903764764,1.00065587,2553.5,2553.3,1.7259819]
[1726903765087,3.71518502,2553.6,2553.3,1.7259819]
[1726903765445,1.09852461,2553.5,2553.3,1.7259819]
[1726903765616,0.09791194,2553.5,2553.3,1.7259819]
[1726903765754,4.27160683,2553.6,2553.3,1.7259819]
[1726903765960,1.00059735,2553.5,2553.3,1.7259819]
[1726903766160,3.71518502,2553.6,2553.3,1.7259819]
[1726903766763,3.71518502,2553.6,2552.7,2.05053243]
[1726903766764,3.42150295,2553.5,2552.7,4.57079933]
[1726903766969,3.71518502,2553.2,2552.7,1.7259819]
[1726903767190,3.89368793,2553.1,2552.7,1.7259819]
[1726903767393,2.893,2553.1,2552.7,1.7259819]
[1726903767555,2.99092927,2553.1,2552.7,1.7259819]
[1726903767753,2.893,2553.1,2552.7,1.7259819]
[1726903769061,2.893,2553.1,2552.9,1.7259819]
[1726903775909,3.0176,2553.4,2552.9,1.7259819]
[1726903776085,3.0176,2553.4,2553.1,1.7259819]